[Event "47th GRE-chT 2019"]
[Site "Patra"]
[Date "2019.07.03"]
[Round "2.38"]
[White "Kouskoutis, Georgios-Alexandros"]
[Black "Gkikas, Vasilios"]
[Result "1-0"]
[ECO "A29"]
[WhiteElo "2256"]
[BlackElo "1950"]
[Annotator "NA"]
[PlyCount "119"]
[EventDate "2019.07.02"]
[EventCountry "GRE"]
[SourceTitle "playchess.com"]
[Source "ChessBase"]
[SourceQuality "1"]
[TimeControl "5400+30"]

1. c4 {[%emt 0:00:46]} e5 {[%emt 0:00:00]} 2. g3 {[%emt 0:01:02]} Nf6 {[%emt 0:00:00]} 3. Bg2 {[%emt 0:00:23]} d5 {[%emt 0:00:00]} 4. cxd5 {[%emt 0:00:03]} Nxd5 {[%emt 0:00:00]} 5. Nc3 {[%emt 0:00:06]} Nb6 {[%emt 0:00:00]} 6. Nf3 {[%emt 0:00:11]} Nc6 {[%emt 0:00:00]} 7. O-O {[%emt 0:00:29]} Be7 {[%emt 0:00:49]} 8. d3 {[%emt 0:00:35]} O-O {[%emt 0:02:04]} 9. Be3 {[%emt 0:09:56]} Be6 {[%emt 0:01:01]} 10. Rc1 {[%emt 0:01:36]} Nd5 {[%emt 0:12:47]} 11. Nxd5 {[%emt 0:01:11]} Bxd5 {[%emt 0:00:55]} 12. Qa4 {[%emt 0:16:19]} Re8 {[%emt 0:12:46]} 13. b4 {[%emt 0:08:09]} a6 {[%emt 0:05:00]} 14. a3 {[%emt 0:18:57]} Bf6 {[%emt 0:05:04]} 15. Rc5 {[%emt 0:05:23]} Ne7 {[%emt 0:17:22]} 16. Nd2 {[%emt 0:03:12]} Bxg2 {[%emt 0:00:12]} 17. Kxg2 {[%emt 0:03:02]} Nd5 {[%emt 0:07:01]} 18. Qb3 {[%emt 0:00:57]} c6 {[%emt 0:04:39]} 19. Ne4 {[%emt 0:03:59]} Be7 {[%emt 0:00:54]} 20. Rc2 {[%emt 0:03:04]} Rc8 {[%emt 0:04:35]} 21. Bc5 {[%emt 0:03:06]} Nc7 {[%emt 0:06:44]} 22. a4 {[%emt 0:00:25]} Ne6 {[%emt 0:03:15]} 23. Bxe7 {[%emt 0:01:59]} Rxe7 {[%emt 0:00:43]} 24. e3 {[%emt 0:01:36]} h6 {[%emt 0:04:23]} 25. Rfc1 {[%emt 0:05:19]} Ng5 {[%emt 0:03:53]} 26. Nxg5 {[%emt 0:00:17]} hxg5 {[%emt 0:03:17]} 27. b5 {[%emt 0:00:38]} axb5 {[%emt 0:00:06]} 28. axb5 {[%emt 0:00:41]} Qd6 {[%emt 0:02:07]} 29. Qc4 {[%emt 0:02:19]} Rd7 {[%emt 0:00:34]} 30. Rc3 {[%emt 0:05:29]} Rcd8 {[%emt 0:03:07]} 31. bxc6 {[%emt 0:00:10]} Qxc6+ {[%emt 0:01:00]} 32. Qxc6 {[%emt 0:00:04]} bxc6 {[%emt 0:00:26]} 33. Rd1 {[%emt 0:00:15]} f6 {[%emt 0:00:31]} 34. Kf3 {[%emt 0:01:08]} Kf7 {[%emt 0:00:08]} 35. Ke2 {[%emt 0:00:11]} Rd6 {[%emt 0:00:10]} 36. Rb1 {[%emt 0:00:29]} Rh8 {[%emt 0:00:57]} 37. Rb6 {[%emt 0:00:07]} Rxh2 {[%emt 0:00:03]} 38. Rbxc6 {[%emt 0:00:08]} Rxc6 {[%emt 0:00:04]} 39. Rxc6 {[%emt 0:02:20]} g4 {[%emt 0:00:00]} 40. Rc7+ {[%emt 0:00:00]} Kg6 {[%emt 0:00:00]} 41. d4 {[%emt 0:00:00]} exd4 {[%emt 0:00:00]} 42. exd4 {[%emt 0:00:00]} Rh5 {[%emt 0:00:00]} 43. Rc5 {[%emt 0:00:00]} Rh8 {[%emt 0:00:00]} 44. Kd3 {[%emt 0:00:00]} Rh2 {[%emt 0:00:00]} 45. Rc2 {[%emt 0:00:00]} Kf5 {[%emt 0:00:00]} 46. Re2 {[%emt 0:00:00]} Rh8 {[%emt 0:00:00]} 47. d5 {[%emt 0:00:00]} Rd8 {[%emt 0:00:00]} 48. Kd4 {[%emt 0:00:00]} Kg6 {[%emt 0:00:00]} 49. Kc5 {[%emt 0:00:00]} Rc8+ {[%emt 0:00:00]} 50. Kb6 {[%emt 0:00:00]} Rd8 {[%emt 0:00:00]} 51. Kc6 {[%emt 0:00:00]} Rc8+ {[%emt 0:00:00]} 52. Kd7 {[%emt 0:00:00]} Rc5 {[%emt 0:00:00]} 53. d6 {[%emt 0:00:00]} Kf7 {[%emt 0:00:00]} 54. Kd8 {[%emt 0:00:00]} f5 {[%emt 0:00:00]} 55. Re7+ {[%emt 0:00:00]} Kf8 {[%emt 0:00:00]} 56. Rc7 {[%emt 0:00:00]} Ra5 {[%emt 0:00:00]} 57. d7 {[%emt 0:00:00]} Ra2 {[%emt 0:00:00]} 58. Rc5 {[%emt 0:00:00]} Rxf2 {[%emt 0:00:00]} 59. Kc7 {[%emt 0:00:00]} Rd2 {[%emt 0:00:00]} 60. d8=Q+ {[%emt 0:00:00]} 1-0

[Event "47th GRE-chT 2019"]
[Site "Patra"]
[Date "2019.07.03"]
[Round "2.40"]
[White "Papaioannou, Dimitrios"]
[Black "Gioutsos, Vasileios"]
[Result "1/2-1/2"]
[ECO "A16"]
[WhiteElo "1629"]
[BlackElo "1426"]
[Annotator "NA"]
[PlyCount "121"]
[EventDate "2019.07.02"]
[EventCountry "GRE"]
[SourceTitle "playchess.com"]
[Source "ChessBase"]
[SourceQuality "1"]
[TimeControl "5400+30"]

1. c4 {[%emt 0:00:00]} Nf6 {[%emt 0:00:00]} 2. Nc3 {[%emt 0:00:00]} g6 {[%emt 0:00:00]} 3. g3 {[%emt 0:00:00]} Bg7 {[%emt 0:00:00]} 4. Bg2 {[%emt 0:00:00]} O-O {[%emt 0:00:18]} 5. e4 {[%emt 0:00:02]} d6 {[%emt 0:00:24]} 6. Nge2 {[%emt 0:00:07]} Nbd7 {[%emt 0:01:21]} 7. O-O {[%emt 0:00:20]} c5 {[%emt 0:01:58]} 8. d3 {[%emt 0:01:04]} a6 {[%emt 0:05:30]} 9. h3 {[%emt 0:01:55]} Rb8 {[%emt 0:02:39]} 10. a4 {[%emt 0:02:53]} Ne5 {[%emt 0:06:37]} 11. Be3 {[%emt 0:03:37]} Nc6 {[%emt 0:03:18]} 12. f4 {[%emt 0:02:26]} e5 {[%emt 0:10:05]} 13. f5 {[%emt 0:05:55]} Nd4 {[%emt 0:06:57]} 14. g4 {[%emt 0:05:22]} h6 {[%emt 0:06:36]} 15. Rb1 {[%emt 0:03:07]} g5 {[%emt 0:05:05]} 16. b4 {[%emt 0:04:09]} Qe7 {[%emt 0:15:06]} 17. Ng3 {[%emt 0:09:09]} cxb4 {[%emt 0:09:17]} 18. Rxb4 {[%emt 0:01:56]} d5 {[%emt 0:03:53]} 19. Rb1 {[%emt 0:00:41]} dxc4 {[%emt 0:00:36]} 20. dxc4 {[%emt 0:00:17]} Qa3 {[%emt 0:07:15]} 21. Bxd4 {[%emt 0:00:22]} exd4 {[%emt 0:01:12]} 22. Nce2 {[%emt 0:01:02]} Qe3+ {[%emt 0:02:20]} 23. Kh2 {[%emt 0:00:06]} d3 {[%emt 0:02:09]} 24. Nc1 {[%emt 0:01:04]} d2 {[%emt 0:02:22]} 25. Nb3 {[%emt 0:01:13]} Rd8 {[%emt 0:02:31]} 26. Rf3 {[%emt 0:01:28]} Qb6 {[%emt 0:00:41]} 27. e5 {[%emt 0:06:30]} Nh7 {[%emt 0:01:43]} 28. f6 {[%emt 0:00:13]} Bf8 {[%emt 0:00:16]} 29. Nf1 {[%emt 0:01:47]} Qc7 {[%emt 0:01:08]} 30. Re3 {[%emt 0:01:07]} Qxc4 {[%emt 0:00:36]} 31. Nbxd2 {[%emt 0:00:40]} Qf4+ {[%emt 0:00:30]} 32. Kh1 {[%emt 0:00:04]} Bc5 {[%emt 0:01:14]} 33. Re2 {[%emt 0:01:24]} Qd4 {[%emt 0:01:29]} 34. Ng3 {[%emt 0:00:48]} Qd3 {[%emt 0:00:57]} 35. Nge4 {[%emt 0:01:10]} Qd4 {[%emt 0:00:47]} 36. Nxc5 {[%emt 0:01:47]} Qxc5 {[%emt 0:00:01]} 37. Qe1 {[%emt 0:00:15]} Be6 {[%emt 0:00:48]} 38. Rxb7 {[%emt 0:02:38]} Rxb7 {[%emt 0:00:39]} 39. Bxb7 {[%emt 0:00:01]} Qa3 {[%emt 0:00:16]} 40. Re3 {[%emt 0:00:00]} Qxa4 {[%emt 0:00:00]} 41. Bf3 {[%emt 0:00:00]} Qd4 {[%emt 0:00:00]} 42. Nf1 {[%emt 0:00:00]} Nf8 {[%emt 0:00:00]} 43. Qa5 {[%emt 0:00:00]} Bc4 {[%emt 0:00:00]} 44. Re1 {[%emt 0:00:00]} Qf2 {[%emt 0:00:00]} 45. Bg2 {[%emt 0:00:00]} Rd3 {[%emt 0:00:00]} 46. Rc1 {[%emt 0:00:00]} Bd5 {[%emt 0:00:00]} 47. Qxd5 {[%emt 0:00:00]} Rxd5 {[%emt 0:00:00]} 48. Bxd5 {[%emt 0:00:00]} Qd4 {[%emt 0:00:16]} 49. Bg2 {[%emt 0:00:00]} Qxe5 {[%emt 0:00:20]} 50. Rc6 {[%emt 0:00:00]} a5 {[%emt 0:00:45]} 51. Ra6 {[%emt 0:00:00]} Qb5 {[%emt 0:00:34]} 52. Ra8 {[%emt 0:00:00]} a4 {[%emt 0:01:00]} 53. Ne3 {[%emt 0:00:00]} Qc5 {[%emt 0:04:26]} 54. Nd5 {[%emt 0:00:00]} Qc1+ {[%emt 0:00:24]} 55. Kh2 {[%emt 0:00:00]} Qe1 {[%emt 0:00:28]} 56. Ne7+ {[%emt 0:00:00]} Kh7 {[%emt 0:00:06]} 57. Rxf8 {[%emt 0:00:00]} Qe5+ {[%emt 0:00:24]} 58. Kg1 {[%emt 0:00:00]} Qa1+ {[%emt 0:00:36]} 59. Kh2 {[%emt 0:00:00]} Qe5+ {[%emt 0:00:26]} 60. Kg1 {[%emt 0:00:00]} Qe1+ {[%emt 0:00:18]} 61. Kh2 {[%emt 0:00:10]} 1/2-1/2

[Event "47th GRE-chT 2019"]
[Site "Patra"]
[Date "2019.07.03"]
[Round "3.1"]
[White "Lupulescu, Constantin"]
[Black "Laznicka, Viktor"]
[Result "1/2-1/2"]
[ECO "D11"]
[WhiteElo "2649"]
[BlackElo "2658"]
[Annotator "ChessBase"]
[PlyCount "37"]
[EventDate "2019.07.02"]
[EventCountry "GRE"]
[SourceTitle "playchess.com"]
[Source "ChessBase"]
[SourceQuality "1"]
[TimeControl "5400+30"]

1. d4 {[%emt 0:00:00]} d5 {[%emt 0:00:00]} 2. Nf3 {[%emt 0:00:00]} Nf6 {[%emt 0:00:00]} 3. c4 {[%emt 0:00:00]} c6 {[%emt 0:00:00]} 4. e3 {[%emt 0:00:00]} a6 {[%emt 0:00:00]} 5. Nbd2 {[%emt 0:00:06]} Bf5 {[%emt 0:00:04]} 6. Nh4 {[%emt 0:00:58]} Bg4 {[%emt 0:00:07]} 7. Qc2 {[%emt 0:04:16]} e6 {[%emt 0:00:19]} 8. h3 {[%emt 0:00:33]} Bh5 {[%emt 0:00:05]} 9. g4 {[%emt 0:01:43]} Bg6 {[%emt 0:00:37]} 10. Nxg6 {[%emt 0:00:21]} hxg6 {[%emt 0:00:06]} 11. Bg2 {[%emt 0:00:53]} Nbd7 {[%emt 0:01:55]} 12. b3 {[%emt 0:02:12]} Be7 {[%emt 0:03:46]} 13. Bb2 {[%emt 0:01:21]} g5 {[%emt 0:03:19]} 14. O-O-O {[%emt 0:06:21]} Qa5 {[%emt 0:05:20]} 15. Kb1 {[%emt 0:01:09]} Ba3 {[%emt 0:00:42]} 16. Ba1 {[%emt 0:03:25]} Bb4 {[%emt 0:00:42]} 17. Bb2 {[%emt 0:12:59]} Ba3 {[%emt 0:09:53]} 18. Ba1 {[%emt 0:04:41]} Bb4 {[%emt 0:00:30]} 19. Bb2 {[%emt 0:13:27]} 1/2-1/2

[Event "47th GRE-chT 2019"]
[Site "Patra"]
[Date "2019.07.03"]
[Round "3.1"]
[White "Papaioannou, Ioannis"]
[Black "Kourkoulos-Arditis, Stamatis"]
[Result "1/2-1/2"]
[ECO "A48"]
[WhiteElo "2640"]
[BlackElo "2436"]
[Annotator "ChessBase"]
[PlyCount "75"]
[EventDate "2019.07.02"]
[EventCountry "GRE"]
[SourceTitle "playchess.com"]
[Source "ChessBase"]
[SourceQuality "1"]
[TimeControl "5400+30"]

1. d4 {[%emt 0:00:00]} Nf6 {[%emt 0:03:03]} 2. Nf3 {[%emt 0:00:02]} g6 {[%emt 0:00:25]} 3. Bg5 {[%emt 0:00:07]} Bg7 {[%emt 0:00:03]} 4. Nbd2 {[%emt 0:00:08]} O-O {[%emt 0:00:12]} 5. e3 {[%emt 0:00:05]} d6 {[%emt 0:00:05]} 6. c3 {[%emt 0:00:37]} Nbd7 {[%emt 0:00:26]} 7. Bd3 {[%emt 0:00:10]} h6 {[%emt 0:00:09]} 8. Bh4 {[%emt 0:00:08]} e5 {[%emt 0:00:08]} 9. O-O {[%emt 0:00:13]} Re8 {[%emt 0:00:24]} 10. e4 {[%emt 0:00:10]} exd4 {[%emt 0:00:06]} 11. cxd4 {[%emt 0:00:27]} g5 {[%emt 0:00:07]} 12. Bg3 {[%emt 0:00:06]} Nh5 {[%emt 0:00:04]} 13. Nc4 {[%emt 0:02:31]} Nb8 {[%emt 0:00:51]} 14. d5 {[%emt 0:06:19]} Nd7 {[%emt 0:06:27]} 15. Qc2 {[%emt 0:05:59]} Nc5 {[%emt 0:04:11]} 16. Rae1 {[%emt 0:01:07]} Bd7 {[%emt 0:13:24]} 17. b4 {[%emt 0:08:16]} Nxd3 {[%emt 0:01:33]} 18. Qxd3 {[%emt 0:00:02]} Bb5 {[%emt 0:28:41]} 19. Rc1 {[%emt 0:05:29]} a5 {[%emt 0:06:06]} 20. a4 {[%emt 0:05:49]} Bxa4 {[%emt 0:02:56]} 21. Nxa5 {[%emt 0:00:53]} Qd7 {[%emt 0:00:28]} 22. Rfe1 {[%emt 0:00:34]} Bb5 {[%emt 0:01:49]} 23. Qc2 {[%emt 0:03:50]} Nxg3 {[%emt 0:00:08]} 24. hxg3 {[%emt 0:00:17]} c5 {[%emt 0:00:21]} 25. dxc6 {[%emt 0:01:00]} bxc6 {[%emt 0:00:03]} 26. Nc4 {[%emt 0:02:41]} Qe6 {[%emt 0:01:45]} 27. e5 {[%emt 0:03:33]} Qxc4 {[%emt 0:11:34]} 28. Qxc4 {[%emt 0:00:04]} Bxc4 {[%emt 0:00:03]} 29. Rxc4 {[%emt 0:00:03]} dxe5 {[%emt 0:00:11]} 30. Rxc6 {[%emt 0:00:23]} Rab8 {[%emt 0:04:27]} 31. Rc4 {[%emt 0:00:18]} Bf8 {[%emt 0:02:36]} 32. Rxe5 {[%emt 0:09:03]} Rxe5 {[%emt 0:00:25]} 33. Nxe5 {[%emt 0:00:04]} Rxb4 {[%emt 0:00:14]} 34. Rc8 {[%emt 0:00:15]} Rb7 {[%emt 0:01:53]} 35. Ng4 {[%emt 0:00:25]} Kg7 {[%emt 0:02:31]} 36. Ne3 {[%emt 0:01:21]} h5 {[%emt 0:00:08]} 37. Rc6 {[%emt 0:00:34]} Rb5 {[%emt 0:00:17]} 38. g4 {[%emt 0:00:56]} 1/2-1/2

[Event "47th GRE-chT 2019"]
[Site "Patra"]
[Date "2019.07.03"]
[Round "3.2"]
[White "Pancevski, Filip"]
[Black "Pultinevicius, Paulius"]
[Result "0-1"]
[ECO "A15"]
[WhiteElo "2514"]
[BlackElo "2481"]
[Annotator "ChessBase"]
[PlyCount "56"]
[EventDate "2019.07.02"]
[EventCountry "GRE"]
[SourceTitle "playchess.com"]
[Source "ChessBase"]
[SourceQuality "1"]
[TimeControl "5400+30"]

1. c4 {[%emt 0:00:00]} Nf6 {[%emt 0:00:00]} 2. g3 {[%emt 0:00:00]} c6 {[%emt 0:00:40]} 3. Bg2 {[%emt 0:00:00]} d5 {[%emt 0:00:06]} 4. Nf3 {[%emt 0:00:00]} g6 {[%emt 0:00:46]} 5. b3 {[%emt 0:00:04]} Bg7 {[%emt 0:00:13]} 6. Bb2 {[%emt 0:00:02]} O-O {[%emt 0:00:29]} 7. O-O {[%emt 0:00:06]} Nbd7 {[%emt 0:01:01]} 8. Qc2 {[%emt 0:00:06]} Re8 {[%emt 0:04:05]} 9. cxd5 {[%emt 0:01:41]} cxd5 {[%emt 0:09:02]} 10. Rc1 {[%emt 0:00:19]} b6 {[%emt 0:00:55]} 11. Nd4 {[%emt 0:09:58]} Bb7 {[%emt 0:02:12]} 12. Qc7 {[%emt 0:09:38]} Nc5 {[%emt 0:01:18]} 13. Qxd8 {[%emt 0:03:09]} Rexd8 {[%emt 0:00:11]} 14. Na3 {[%emt 0:07:39]} a6 {[%emt 0:09:35]} 15. Rc2 {[%emt 0:03:20]} Nfd7 {[%emt 0:08:18]} 16. f4 {[%emt 0:08:18]} b5 {[%emt 0:03:22]} 17. Rac1 {[%emt 0:01:22]} b4 {[%emt 0:00:36]} 18. Nb1 {[%emt 0:00:02]} e6 {[%emt 0:07:42]} 19. d3 {[%emt 0:06:50]} Rdc8 {[%emt 0:03:59]} 20. Nd2 {[%emt 0:02:39]} a5 {[%emt 0:03:00]} 21. Nb5 {[%emt 0:08:19]} Nxd3 {[%emt 0:08:19]} 22. Rxc8+ {[%emt 0:13:11]} Bxc8 {[%emt 0:00:05]} 23. exd3 {[%emt 0:01:45]} Bxb2 {[%emt 0:00:07]} 24. Rc7 {[%emt 0:00:40]} Ba6 {[%emt 0:00:21]} 25. Nd6 {[%emt 0:00:36]} Ra7 {[%emt 0:00:23]} 26. Rc6 {[%emt 0:01:37]} Nb8 {[%emt 0:04:06]} 27. Rc2 {[%emt 0:00:41]} Bc3 {[%emt 0:00:27]} 28. Bf1 {[%emt 0:06:09]} Rd7 {[%emt 0:00:27]} 0-1

[Event "47th GRE-chT 2019"]
[Site "Patra"]
[Date "2019.07.03"]
[Round "3.3"]
[White "Grivas, Efstratios"]
[Black "Kofidis, Spyridon"]
[Result "1-0"]
[ECO "E16"]
[WhiteElo "2418"]
[BlackElo "2169"]
[Annotator "NA"]
[PlyCount "141"]
[EventDate "2019.07.02"]
[EventCountry "GRE"]
[SourceTitle "playchess.com"]
[Source "ChessBase"]
[SourceQuality "1"]
[TimeControl "5400+30"]

1. d4 {[%emt 0:00:00]} Nf6 {[%emt 0:04:10]} 2. c4 {[%emt 0:03:13]} e6 {[%emt 0:00:11]} 3. Nf3 {[%emt 0:00:06]} b6 {[%emt 0:00:22]} 4. g3 {[%emt 0:00:33]} Bb7 {[%emt 0:00:30]} 5. Bg2 {[%emt 0:00:08]} Bb4+ {[%emt 0:00:18]} 6. Nbd2 {[%emt 0:00:16]} c5 {[%emt 0:01:40]} 7. a3 {[%emt 0:01:15]} Bxd2+ {[%emt 0:00:38]} 8. Qxd2 {[%emt 0:01:12]} cxd4 {[%emt 0:05:38]} 9. O-O {[%emt 0:08:47]} O-O {[%emt 0:02:32]} 10. Qxd4 {[%emt 0:03:46]} Nc6 {[%emt 0:00:23]} 11. Qh4 {[%emt 0:02:05]} Rc8 {[%emt 0:13:02]} 12. Bg5 {[%emt 0:07:41]} Na5 {[%emt 0:07:22]} 13. Ne5 {[%emt 0:08:49]} h6 {[%emt 0:09:16]} 14. Bxf6 {[%emt 0:02:21]} Qxf6 {[%emt 0:00:10]} 15. Qxf6 {[%emt 0:00:23]} gxf6 {[%emt 0:00:10]} 16. Bxb7 {[%emt 0:00:50]} Rc7 {[%emt 0:05:47]} 17. Ng4 {[%emt 0:05:58]} Rxb7 {[%emt 0:05:37]} 18. Nxf6+ {[%emt 0:01:39]} Kg7 {[%emt 0:00:59]} 19. Nh5+ {[%emt 0:00:07]} Kh8 {[%emt 0:05:43]} 20. Rad1 {[%emt 0:09:56]} Nxc4 {[%emt 0:07:54]} 21. Rd4 {[%emt 0:01:18]} d5 {[%emt 0:01:20]} 22. e4 {[%emt 0:03:01]} Rd8 {[%emt 0:02:39]} 23. exd5 {[%emt 0:00:44]} Rxd5 {[%emt 0:02:44]} 24. Rxc4 {[%emt 0:01:49]} Rxh5 {[%emt 0:00:09]} 25. Rd1 {[%emt 0:00:05]} Rc5 {[%emt 0:02:03]} 26. Rxc5 {[%emt 0:03:21]} bxc5 {[%emt 0:00:02]} 27. Rd2 {[%emt 0:00:17]} Kg7 {[%emt 0:01:26]} 28. Rc2 {[%emt 0:02:10]} Kf6 {[%emt 0:04:14]} 29. Rxc5 {[%emt 0:01:59]} Rxb2 {[%emt 0:00:24]} 30. Rc7 {[%emt 0:00:07]} a6 {[%emt 0:03:18]} 31. Rc6 {[%emt 0:00:07]} Ra2 {[%emt 0:01:40]} 32. Rxa6 {[%emt 0:00:08]} Kf5 {[%emt 0:00:11]} 33. Ra4 {[%emt 0:04:25]} e5 {[%emt 0:00:50]} 34. Kg2 {[%emt 0:10:42]} h5 {[%emt 0:07:00]} 35. h4 {[%emt 0:03:18]} e4 {[%emt 0:02:09]} 36. Ra5+ {[%emt 0:00:33]} Ke6 {[%emt 0:00:51]} 37. Kf1 {[%emt 0:05:15]} f5 {[%emt 0:00:41]} 38. Ke1 {[%emt 0:00:58]} Kf6 {[%emt 0:00:36]} 39. Ra8 {[%emt 0:01:04]} Kg7 {[%emt 0:00:56]} 40. Ra6 {[%emt 0:00:00]} Kf7 {[%emt 0:00:00]} 41. Rh6 {[%emt 0:00:00]} Rxa3 {[%emt 0:00:00]} 42. Rxh5 {[%emt 0:00:00]} Kg6 {[%emt 0:00:00]} 43. Rg5+ {[%emt 0:00:00]} Kf6 {[%emt 0:00:00]} 44. Rg8 {[%emt 0:00:00]} Ra1+ {[%emt 0:00:00]} 45. Ke2 {[%emt 0:00:00]} Ra2+ {[%emt 0:00:00]} 46. Kf1 {[%emt 0:00:00]} Ra1+ {[%emt 0:00:00]} 47. Kg2 {[%emt 0:00:00]} Ra2 {[%emt 0:00:00]} 48. Rf8+ {[%emt 0:00:00]} Kg6 {[%emt 0:00:00]} 49. Re8 {[%emt 0:00:00]} Kf7 {[%emt 0:00:00]} 50. Rb8 {[%emt 0:00:00]} e3 {[%emt 0:00:00]} 51. Kf3 {[%emt 0:00:00]} exf2 {[%emt 0:00:00]} 52. Kg2 {[%emt 0:00:00]} f1=Q+ {[%emt 0:01:00]} 53. Kxf1 {[%emt 0:00:00]} Kg6 {[%emt 0:00:00]} 54. Rb4 {[%emt 0:00:00]} Rc2 {[%emt 0:03:00]} 55. Rf4 {[%emt 0:00:00]} Ra2 {[%emt 0:00:00]} 56. Rf2 {[%emt 0:00:00]} Ra3 {[%emt 0:00:00]} 57. Kg2 {[%emt 0:00:00]} Rb3 {[%emt 0:00:00]} 58. Rf3 {[%emt 0:01:02]} Rb2+ {[%emt 0:00:00]} 59. Kh3 {[%emt 0:00:36]} Rb4 {[%emt 0:00:00]} 60. Ra3 {[%emt 0:00:26]} Rb6 {[%emt 0:00:00]} 61. Kg2 {[%emt 0:01:04]} Rc6 {[%emt 0:00:00]} 62. Kf3 {[%emt 0:00:12]} Rb6 {[%emt 0:00:00]} 63. Ra4 {[%emt 0:00:18]} Rc6 {[%emt 0:00:00]} 64. Kf4 {[%emt 0:00:17]} Rb6 {[%emt 0:00:00]} 65. Rd4 {[%emt 0:01:35]} Ra6 {[%emt 0:03:27]} 66. Ke5 {[%emt 0:01:35]} Ra5+ {[%emt 0:08:54]} 67. Rd5 {[%emt 0:00:35]} Ra4 {[%emt 0:01:46]} 68. Rd6+ {[%emt 0:00:02]} Kh5 69. Kxf5 {[%emt 0:00:03] Kg6+ Kf4+} Ra6 {[%emt 0:00:02]} 70. Rd4 Re6 {[%emt 0:00:07] Ke5 Kh5+} 71. Kf4 {[%emt 0:00:14]} 1-0

[Event "47th GRE-chT 2019"]
[Site "Patra"]
[Date "2019.07.03"]
[Round "3.3"]
[White "Kourousis, Epaminondas"]
[Black "Ioannidis, Evgenios"]
[Result "1-0"]
[ECO "A04"]
[WhiteElo "2394"]
[BlackElo "2378"]
[Annotator "NA"]
[PlyCount "97"]
[EventDate "2019.07.02"]
[EventCountry "GRE"]
[SourceTitle "playchess.com"]
[Source "ChessBase"]
[SourceQuality "1"]
[TimeControl "5400+30"]

1. Nf3 {[%emt 0:00:00]} c5 {[%emt 0:01:07]} 2. c4 {[%emt 0:00:52]} Nc6 {[%emt 0:00:34]} 3. g3 {[%emt 0:01:15]} g6 {[%emt 0:00:37]} 4. Bg2 {[%emt 0:00:23]} Bg7 {[%emt 0:00:10]} 5. O-O {[%emt 0:00:15]} d6 {[%emt 0:01:08]} 6. Nc3 {[%emt 0:00:34]} Bf5 {[%emt 0:00:30]} 7. a3 {[%emt 0:02:06]} Qd7 {[%emt 0:04:49]} 8. Re1 {[%emt 0:05:42]} Nf6 {[%emt 0:09:43]} 9. d3 {[%emt 0:06:34]} O-O {[%emt 0:00:55]} 10. Rb1 {[%emt 0:00:18]} Bh3 {[%emt 0:11:04]} 11. Bh1 {[%emt 0:00:10]} h6 {[%emt 0:01:00]} 12. b4 {[%emt 0:00:53]} Rac8 {[%emt 0:03:57]} 13. b5 {[%emt 0:04:24]} Nd8 {[%emt 0:07:24]} 14. Nd5 {[%emt 0:06:21]} Nh5 {[%emt 0:04:25]} 15. Qa4 {[%emt 0:03:00]} e6 {[%emt 0:02:16]} 16. Nf4 {[%emt 0:01:13]} Nxf4 {[%emt 0:00:07]} 17. Bxf4 {[%emt 0:00:05]} e5 {[%emt 0:03:14]} 18. Bc1 {[%emt 0:06:41]} b6 {[%emt 0:08:13]} 19. Nd2 {[%emt 0:17:40]} f5 {[%emt 0:02:42]} 20. Qa6 {[%emt 0:02:55]} Kh7 {[%emt 0:03:17]} 21. a4 {[%emt 0:00:32]} Rb8 {[%emt 0:02:15]} 22. a5 {[%emt 0:00:30]} Ne6 {[%emt 0:02:38]} 23. axb6 {[%emt 0:01:13]} axb6 {[%emt 0:00:03]} 24. e3 {[%emt 0:08:40]} f4 {[%emt 0:03:40]} 25. Ne4 {[%emt 0:02:03]} Bf5 {[%emt 0:05:05]} 26. Qa2 {[%emt 0:03:03]} Bxe4 {[%emt 0:02:03]} 27. Bxe4 {[%emt 0:01:49]} Ng5 {[%emt 0:06:08]} 28. exf4 {[%emt 0:03:01]} exf4 {[%emt 0:00:12]} 29. Bxf4 {[%emt 0:02:21]} Nh3+ {[%emt 0:00:56]} 30. Kh1 {[%emt 0:00:37]} Bd4 {[%emt 0:05:05]} 31. Re2 {[%emt 0:01:40]} Nxf4 {[%emt 0:04:21]} 32. gxf4 {[%emt 0:00:03]} Rxf4 {[%emt 0:00:20]} 33. Rg1 {[%emt 0:01:55]} Rg8 {[%emt 0:00:04]} 34. Rg3 {[%emt 0:01:50]} Be5 {[%emt 0:00:55]} 35. Rg2 {[%emt 0:01:55]} Rf6 {[%emt 0:00:59]} 36. Qa6 {[%emt 0:01:35]} Qc7 {[%emt 0:00:05]} 37. Ra2 {[%emt 0:01:47]} Rg7 {[%emt 0:01:16]} 38. Qa8 {[%emt 0:00:05]} Bc3 {[%emt 0:02:33]} 39. Qc6 {[%emt 0:09:10]} Ba5 {[%emt 0:01:00]} 40. Ra1 {[%emt 0:00:00]} Qxc6 {[%emt 0:00:00]} 41. bxc6 {[%emt 0:00:00]} Kh8 {[%emt 0:00:00]} 42. Rag1 {[%emt 0:00:00]} g5 {[%emt 0:00:00]} 43. h4 {[%emt 0:00:00]} Rf4 {[%emt 0:00:00]} 44. hxg5 {[%emt 0:00:00]} Rh4+ {[%emt 0:00:00]} 45. Rh2 {[%emt 0:00:00]} Rxh2+ {[%emt 0:00:00]} 46. Kxh2 {[%emt 0:00:00]} hxg5 {[%emt 0:00:00]} 47. Kg3 {[%emt 0:00:00]} Kg8 {[%emt 0:00:00]} 48. Rh1 {[%emt 0:00:00]} Re7 {[%emt 0:00:00]} 49. Rh7 {[%emt 0:00:00]} 1-0

[Event "47th GRE-chT 2019"]
[Site "Patra"]
[Date "2019.07.03"]
[Round "3.4"]
[White "Papadopoulos, Panayotis"]
[Black "Pantazopoulos, Stavros"]
[Result "1-0"]
[ECO "D02"]
[WhiteElo "2165"]
[BlackElo "2159"]
[Annotator "NA"]
[PlyCount "79"]
[EventDate "2019.07.02"]
[EventCountry "GRE"]
[SourceTitle "playchess.com"]
[Source "ChessBase"]
[SourceQuality "1"]
[TimeControl "5400+30"]

1. d4 {[%emt 0:00:00]} d5 {[%emt 0:00:00]} 2. Nf3 {[%emt 0:00:00]} Nf6 {[%emt 0:00:00]} 3. Bf4 {[%emt 0:00:00]} e6 {[%emt 0:00:28]} 4. e3 {[%emt 0:00:00]} c5 {[%emt 0:04:43]} 5. c3 {[%emt 0:00:11]} Nc6 {[%emt 0:00:19]} 6. Nbd2 {[%emt 0:00:05]} Bd6 {[%emt 0:00:43]} 7. Bg3 {[%emt 0:00:06]} O-O {[%emt 0:00:40]} 8. Bd3 {[%emt 0:00:02]} b6 {[%emt 0:02:44]} 9. Ne5 {[%emt 0:00:42]} Bb7 {[%emt 0:06:47]} 10. O-O {[%emt 0:00:26]} Qc7 {[%emt 0:03:37]} 11. f4 {[%emt 0:05:25]} Ne7 {[%emt 0:03:02]} 12. Qf3 {[%emt 0:05:43]} Nf5 {[%emt 0:09:17]} 13. Bf2 {[%emt 0:00:10]} Be7 {[%emt 0:04:04]} 14. Rae1 {[%emt 0:15:26]} Nd6 {[%emt 0:07:21]} 15. Qh3 {[%emt 0:00:08]} Nfe4 {[%emt 0:10:01]} 16. Nxe4 {[%emt 0:05:43]} Nxe4 {[%emt 0:03:42]} 17. Bh4 {[%emt 0:09:04]} Bxh4 {[%emt 0:12:52]} 18. Qxh4 {[%emt 0:00:05]} f6 {[%emt 0:00:13]} 19. Ng4 {[%emt 0:02:51]} f5 {[%emt 0:15:49]} 20. Ne5 {[%emt 0:07:25]} Rf6 {[%emt 0:00:05]} 21. Bxe4 {[%emt 0:01:00]} dxe4 {[%emt 0:00:05]} 22. h3 {[%emt 0:00:33]} Rh6 {[%emt 0:01:31]} 23. Qg3 {[%emt 0:01:40]} Rd8 {[%emt 0:05:15]} 24. Kh2 {[%emt 0:01:19]} a5 {[%emt 0:01:44]} 25. Qf2 {[%emt 0:02:24]} b5 {[%emt 0:05:00]} 26. Rc1 {[%emt 0:06:40]} Rf6 {[%emt 0:00:48]} 27. Rfd1 {[%emt 0:01:12]} c4 {[%emt 0:01:34]} 28. g4 {[%emt 0:01:13]} Rh6 {[%emt 0:01:00]} 29. g5 {[%emt 0:00:57]} Rh5 {[%emt 0:00:03]} 30. Qe2 {[%emt 0:01:54]} g6 {[%emt 0:00:06]} 31. Kg2 {[%emt 0:01:26]} Kg7 {[%emt 0:00:29]} 32. a4 {[%emt 0:03:31]} Bd5 {[%emt 0:00:52]} 33. axb5 {[%emt 0:00:52]} Rb8 {[%emt 0:00:05]} 34. b3 {[%emt 0:00:56]} cxb3 {[%emt 0:00:56]} 35. c4 {[%emt 0:00:12]} Ba8 {[%emt 0:00:04]} 36. Qb2 {[%emt 0:00:27]} h6 {[%emt 0:00:48]} 37. d5 {[%emt 0:01:21]} Kh7 {[%emt 0:00:03]} 38. dxe6 {[%emt 0:00:36]} Rd8 {[%emt 0:01:18]} 39. Nf7 {[%emt 0:01:12]} Rf8 {[%emt 0:00:45]} 40. Rd7 {[%emt 0:00:00]} 1-0